bitfinex/quotes_BTCUSD_20220211
["timestamp","ask_amount","ask_price","bid_price","bid_amount"]
[1644562221443,0.15770261,43290.0,43289.0,7.0]
[1644562221642,0.20400261,43290.0,43289.0,7.0]
[1644562222443,0.0463,43290.0,43289.0,7.0]
[1644562222642,0.0413,43290.0,43289.0,7.0]
[1644562223042,0.31454161,43290.0,43289.0,7.0]
[1644562225189,0.0413,43290.0,43289.0,7.0]
[1644562226489,0.0413,43290.0,43289.0,7.04490839]
[1644562227288,0.0383,43290.0,43289.0,7.04490839]
[1644562227742,0.30655628,43290.0,43289.0,7.04490839]
[1644562228147,0.03817692,43290.0,43289.0,7.04490839]
[1644562228943,0.03817692,43290.0,43289.0,7.0]
[1644562229143,0.03817692,43290.0,43289.0,7.04490839]
[1644562229946,0.30520057,43290.0,43289.0,7.0]
[1644562230146,0.30520057,43290.0,43289.0,7.04490839]
[1644562231145,0.30520057,43290.0,43289.0,7.0]
[1644562231390,0.30520057,43290.0,43289.0,7.04490839]
[1644562231588,0.03817692,43290.0,43289.0,7.04490839]
[1644562231792,0.67361678,43290.0,43289.0,7.0]
[1644562232189,1.35221678,43290.0,43289.0,7.0]
[1644562232689,1.44335327,43290.0,43289.0,7.0]
[1644562233091,3.557822,43289.0,43287.0,0.00054751]
[1644562233393,0.94473509,43288.0,43287.0,0.00054751]
[1644562233590,1.04473509,43288.0,43287.0,0.00054751]
[1644562233789,0.8249,43288.0,43287.0,0.00054751]
[1644562233987,0.05781824,43284.0,43279.0,0.24279499]
[1644562234191,0.5786,43280.0,43279.0,0.24279499]
[1644562234391,0.6249,43280.0,43279.0,0.24279499]
[1644562236138,0.682714,43280.0,43279.0,0.24279499]
[1644562238139,0.6249,43280.0,43279.0,0.18779499]
[1644562244240,0.62312927,43280.0,43279.0,0.18779499]
[1644562251842,0.62312927,43280.0,43279.0,0.33687048]
[1644562252144,0.0463,43280.0,43279.0,0.18779499]
[1644562252542,0.0463,43280.0,43279.0,0.33687048]
[1644562252742,0.0463,43280.0,43279.0,0.18779499]
[1644562253144,0.0463,43280.0,43279.0,0.38177887]
[1644562254390,0.0463,43280.0,43279.0,0.18779499]
[1644562254791,0.0463,43280.0,43279.0,0.23270338]
[1644562255091,0.0463,43280.0,43279.0,0.18779499]
[1644562255291,0.0463,43280.0,43279.0,0.38177887]
[1644562256697,0.0463,43280.0,43279.0,0.18779499]
[1644562257742,0.0463,43280.0,43277.0,0.00055197]
[1644562258141,0.0463,43280.0,43277.0,0.00055105]
[1644562259140,0.104117,43280.0,43278.0,0.29106656]
[1644562261790,0.154117,43280.0,43278.0,0.29106656]
[1644562262788,0.104117,43280.0,43278.0,0.29106656]
[1644562263789,0.104117,43280.0,43278.0,0.34106656]
[1644562264389,0.104117,43280.0,43278.0,0.3409906]
[1644562264595,0.0463,43280.0,43278.0,0.3409906]
[1644562266842,0.0463,43280.0,43279.0,0.04490839]
[1644562268443,0.057808,43284.0,43280.0,0.05781]
[1644562268643,0.057808,43284.0,43280.0,0.11562]
[1644562268894,0.057808,43284.0,43280.0,0.16562]
[1644562269193,0.057808,43284.0,43280.0,0.16617115]
[1644562269994,0.057808,43284.0,43281.0,0.115619]
[1644562270796,0.03389751,43285.0,43281.0,0.115619]
[1644562270999,0.03389751,43285.0,43282.0,0.057806]
[1644562271197,0.154108,43286.0,43283.0,0.057806]
[1644562271799,0.104108,43286.0,43283.0,0.057806]
[1644562272099,0.104108,43286.0,43284.0,0.107807]
[1644562274342,0.104108,43286.0,43284.0,0.05]
[1644562275544,0.104108,43286.0,43284.0,0.107806]
[1644562276288,0.104108,43286.0,43284.0,0.05]
[1644562277490,0.0463,43286.0,43284.0,0.05]
[1644562277688,0.0963,43286.0,43284.0,0.05]
[1644562277889,0.0463,43286.0,43284.0,0.05]
[1644562279592,9.2e-05,43285.0,43284.0,0.09490839]
[1644562280641,9.2e-05,43285.0,43284.0,0.15270939]
[1644562282042,9.2e-05,43285.0,43284.0,0.09490839]
[1644562282443,0.0463,43290.0,43286.0,0.057804]
[1644562282444,9.2e-05,43289.0,43286.0,0.057804]
[1644562284094,0.057804,43288.0,43286.0,0.057804]
[1644562284297,9.2e-05,43289.0,43286.0,0.057804]
[1644562284497,9.2e-05,43289.0,43288.0,0.14907549]
[1644562284797,0.10938094,43293.0,43290.0,0.07242447]
[1644562284997,0.00063102,43295.0,43291.0,0.44907549]
[1644562284998,0.69298,43292.0,43291.0,0.44907549]
[1644562285197,0.69298,43292.0,43291.0,0.77374557]
[1644562285396,0.346327,43292.0,43291.0,0.98929857]
[1644562285794,0.23609689,43297.0,43291.0,0.98929857]
[1644562285994,0.00063106,43295.0,43291.0,0.79531469]
[1644562286195,0.00063106,43295.0,43294.0,0.24490839]
[1644562286395,0.003,43300.0,43295.0,0.65]
[1644562286595,0.003,43300.0,43295.0,0.70777305]
[1644562286795,0.003,43300.0,43299.0,0.24682676]
[1644562287196,0.003,43300.0,43299.0,0.29173515]
[1644562288636,0.003,43300.0,43299.0,0.57527376]
[1644562288837,0.002,43300.0,43299.0,0.72434925]
[1644562289041,0.001,43306.0,43304.0,0.14907549]
[1644562289242,0.001,43308.0,43307.0,0.2]
[1644562289439,0.0028629,43308.0,43307.0,0.2]
[1644562289638,0.0028629,43308.0,43307.0,0.24490839]
[1644562289838,0.0018629,43308.0,43307.0,0.24490839]
[1644562290240,0.002,43313.0,43307.0,0.53359748]
[1644562290454,0.00064936,43314.0,43310.0,0.09490839]
[1644562290641,0.00164936,43319.0,43318.0,0.06651986]
[1644562290841,0.004,43320.0,43318.0,0.04490839]
[1644562291301,0.004,43320.0,43318.0,0.64461218]
[1644562291492,0.002,43322.0,43321.0,0.14907549]
[1644562292693,0.002,43322.0,43320.0,0.057744]
[1644562293594,0.059762,43322.0,43320.0,0.057744]
[1644562293993,0.359762,43322.0,43320.0,0.057744]
[1644562294195,0.3,43321.0,43320.0,0.057744]
[1644562294393,0.05,43321.0,43320.0,0.057744]
[1644562294594,0.21485361,43322.0,43320.0,0.057744]
[1644562294794,0.30893501,43321.0,43320.0,0.057744]
[1644562295244,0.40893501,43321.0,43320.0,0.057744]
[1644562295545,0.1,43321.0,43320.0,0.057744]
[1644562296347,0.052,43322.0,43320.0,0.057744]
[1644562296546,0.002,43322.0,43320.0,0.057744]
[1644562296948,0.059762,43322.0,43311.0,0.36835842]
[1644562297149,0.002,43322.0,43317.0,0.05777]
[1644562297547,0.05976947,43322.0,43317.0,0.05777]
[1644562297946,0.05777,43320.0,43317.0,0.05777]
[1644562298149,0.44873883,43320.0,43317.0,0.05777]
[1644562298349,0.54873883,43320.0,43317.0,0.05777]
[1644562298547,0.59873883,43320.0,43317.0,0.05777]
[1644562298794,0.54096883,43320.0,43317.0,0.05777]
[1644562299290,0.54096883,43320.0,43312.0,0.115546]
[1644562299291,0.057777,43317.0,43312.0,0.115546]
[1644562299489,0.00509161,43315.0,43312.0,0.115546]
[1644562299691,0.0463,43314.0,43307.0,0.04490839]
[1644562299890,0.0463,43314.0,43306.0,0.00054126]
[1644562300090,0.35926542,43313.0,43306.0,0.30089656]
[1644562300292,0.0463,43312.0,43308.0,0.115553]
[1644562300490,0.057783,43311.0,43308.0,0.115553]
[1644562300691,0.0463,43310.0,43308.0,0.115553]
[1644562301493,0.00509161,43309.0,43307.0,0.057785]
[1644562301692,0.0463,43308.0,43307.0,0.057785]
[1644562301893,0.31449952,43308.0,43307.0,0.057785]
[1644562302293,0.46449952,43308.0,43307.0,0.057785]
[1644562309094,0.6249,43308.0,43307.0,0.057785]
[1644562309295,0.6249,43308.0,43307.0,0.047785]
[1644562309495,0.0463,43308.0,43307.0,0.047785]
[1644562311444,0.0463,43308.0,43307.0,0.37250513]
[1644562312048,0.0463,43313.0,43307.0,0.61741352]
[1644562312247,0.0413,43313.0,43307.0,0.37250513]
[1644562312447,0.0006624,43310.0,43309.0,0.2]
[1644562312648,0.0006624,43310.0,43309.0,0.04490839]
[1644562313247,0.0463,43319.0,43309.0,0.04490839]
[1644562313450,0.0463,43319.0,43311.0,0.34907549]
[1644562313647,0.0006624,43312.0,43309.0,0.057764]
[1644562313898,0.0006624,43312.0,43311.0,0.39398388]
[1644562314094,0.0006624,43312.0,43309.0,0.057764]
[1644562314495,0.62683219,43317.0,43311.0,0.39398388]
[1644562314794,0.00066239,43313.0,43312.0,0.057764]
[1644562314993,0.00066239,43313.0,43312.0,0.10267239]
[1644562315595,0.62683219,43317.0,43312.0,0.057764]
[1644562315894,0.00066238,43315.0,43312.0,0.057764]
[1644562316894,0.31145338,43317.0,43312.0,0.057764]
[1644562317094,0.00066238,43316.0,43312.0,0.057764]
[1644562318050,0.057766,43317.0,43312.0,0.10267239]
[1644562318245,0.00066238,43316.0,43312.0,0.057764]
[1644562318446,0.00066238,43316.0,43312.0,0.10267239]
[1644562318846,0.27929983,43315.0,43312.0,0.10267239]
[1644562319046,0.05,43315.0,43312.0,0.10267239]
[1644562319247,0.057766,43317.0,43312.0,0.057764]
[1644562319445,0.00066238,43316.0,43312.0,0.01698452]
[1644562320248,0.32641795,43315.0,43312.0,0.01698452]
[1644562320848,0.32641795,43315.0,43312.0,0.07474852]
[1644562321296,0.32641795,43315.0,43312.0,0.057764]
[1644562322292,0.05,43315.0,43312.0,0.07474852]
[1644562322694,0.00066238,43316.0,43312.0,0.07474852]
[1644562322894,0.05,43317.0,43312.0,0.07474852]
[1644562323095,0.00066238,43316.0,43312.0,0.07474852]
[1644562323297,0.31174836,43316.0,43312.0,0.057764]
[1644562323495,0.31174836,43316.0,43312.0,0.07474852]
[1644562323695,0.00066238,43316.0,43312.0,0.07474852]
[1644562324097,0.43196808,43318.0,43312.0,0.057764]
[1644562324299,0.00066238,43316.0,43312.0,0.057764]
[1644562324698,0.05842938,43316.0,43312.0,0.07474852]
[1644562325145,0.00066238,43316.0,43312.0,0.057764]
[1644562325346,0.31963414,43317.0,43312.0,0.057764]
[1644562325546,0.00066238,43316.0,43312.0,0.057764]
[1644562326548,0.61151739,43317.0,43312.0,0.057764]
[1644562326747,0.00066238,43316.0,43312.0,0.057764]
[1644562327748,0.39964925,43317.0,43312.0,0.07474852]
[1644562327947,0.00066238,43316.0,43312.0,0.057764]
[1644562328989,0.39964825,43317.0,43312.0,0.057764]
[1644562329190,0.00066238,43316.0,43312.0,0.057764]
[1644562330191,0.39964825,43317.0,43312.0,0.057764]
[1644562330492,0.00066238,43316.0,43312.0,0.057764]
[1644562330693,0.05842938,43316.0,43312.0,0.057764]
[1644562331294,0.057767,43316.0,43312.0,0.057764]
[1644562331493,0.05842938,43316.0,43312.0,0.057764]
[1644562332547,0.057767,43316.0,43312.0,0.057764]
[1644562332748,0.05842938,43316.0,43312.0,0.057764]
[1644562332949,0.00066238,43316.0,43314.0,0.057762]
[1644562333754,0.42050308,43318.0,43314.0,0.057762]
[1644562333949,0.00066237,43317.0,43314.0,0.057762]
[1644562334150,0.05842637,43317.0,43314.0,0.057762]
[1644562334850,0.107764,43317.0,43314.0,0.057762]
[1644562335051,0.05,43317.0,43314.0,0.057762]
[1644562335254,0.057766,43316.0,43314.0,0.057762]
[1644562336296,0.107766,43316.0,43314.0,0.057762]
[1644562336890,0.057766,43316.0,43314.0,0.057762]
[1644562337892,0.05842537,43317.0,43314.0,0.057762]
[1644562338094,0.00066237,43317.0,43314.0,0.057762]
[1644562338495,0.3612557,43319.0,43314.0,0.057762]
[1644562338796,0.00066237,43318.0,43314.0,0.057762]
[1644562339395,0.05842537,43318.0,43314.0,0.057762]
[1644562339595,0.057763,43317.0,43314.0,0.057762]
[1644562340241,0.057763,43317.0,43314.0,0.05765784]
[1644562340442,0.115529,43317.0,43314.0,0.05765784]
[1644562340641,0.057768,43316.0,43314.0,0.05765784]
[1644562341944,0.05842437,43318.0,43314.0,0.05765784]
[1644562342143,0.057762,43318.0,43314.0,0.05765784]
[1644562342345,0.00066237,43317.0,43314.0,0.05765784]
[1644562343242,0.057762,43318.0,43314.0,0.05765784]
[1644562343443,0.05842437,43318.0,43314.0,0.05765784]
[1644562343897,0.00066237,43318.0,43314.0,0.05765784]
[1644562344500,0.4190157,43319.0,43314.0,0.20673333]
[1644562344697,0.00066237,43318.0,43314.0,0.20673333]
[1644562345100,0.00066237,43318.0,43314.0,0.26449245]
[1644562345299,0.00066237,43318.0,43315.0,0.05776]
[1644562345599,0.05842437,43318.0,43315.0,0.05776]
[1644562345801,0.057762,43318.0,43315.0,0.05776]
[1644562347647,0.077762,43318.0,43315.0,0.05776]
[1644562349249,0.02279968,43317.0,43315.0,0.05776]
[1644562349450,0.08056468,43317.0,43315.0,0.05776]
[1644562352700,0.35075991,43317.0,43315.0,0.05776]
[1644562352898,0.27119219,43316.0,43314.0,0.10765784]
[1644562353102,0.32896219,43316.0,43314.0,0.10765784]
[1644562353305,0.72921131,43315.0,43314.0,0.10765784]
[1644562353504,0.4635253,43315.0,43314.0,0.05765784]
[1644562355556,0.77607142,43315.0,43314.0,0.05765784]
[1644562356358,0.87595253,43315.0,43314.0,0.05765784]
[1644562356559,0.77607142,43315.0,43314.0,0.05765784]
[1644562358364,0.81125593,43315.0,43314.0,0.05765784]
[1644562358822,1.06891604,43315.0,43313.0,0.115535]
[1644562359009,0.31492848,43314.0,43313.0,0.115535]
[1644562359209,0.51110959,43314.0,43313.0,0.115535]
[1644562359609,0.53390927,43314.0,43313.0,0.115535]
[1644562360210,0.63390927,43314.0,43313.0,0.115535]
[1644562360412,0.63390927,43314.0,43313.0,0.11546608]
[1644562363747,0.48390927,43314.0,43313.0,0.11546608]
[1644562364147,0.38402816,43314.0,43313.0,0.11546608]
[1644562364948,0.43402816,43314.0,43313.0,0.11546608]
[1644562365349,0.53390927,43314.0,43313.0,0.11546608]
[1644562365952,0.63390927,43314.0,43313.0,0.11546608]
[1644562370348,0.63267077,43314.0,43313.0,0.11546608]
[1644562374398,0.62577157,43314.0,43313.0,0.11546608]
[1644562375302,0.62577157,43314.0,43312.0,0.057779]
[1644562375500,0.31983451,43313.0,43312.0,0.057779]
[1644562375701,0.31983451,43313.0,43307.0,0.003337]
[1644562375702,0.36613451,43313.0,43307.0,0.003337]
[1644562375901,0.46613451,43313.0,43307.0,0.003337]
[1644562376102,0.37691436,43308.0,43305.0,0.00399952]
[1644562376303,0.9463,43307.0,43299.0,0.42]
[1644562376506,0.05,43303.0,43299.0,0.42]
[1644562376702,0.5786,43300.0,43299.0,0.1884]
[1644562376903,0.6249,43300.0,43299.0,0.1884]
[1644562377102,0.6249,43300.0,43297.0,0.34907549]
[1644562377301,0.5786,43298.0,43297.0,0.45868273]
[1644562377562,0.5786,43298.0,43297.0,0.25868273]
[1644562377563,0.6249,43298.0,43297.0,0.25868273]
[1644562377961,0.6249,43298.0,43297.0,0.72332522]
[1644562378159,0.6249,43298.0,43297.0,0.77332522]
[1644562378459,0.6249,43298.0,43297.0,0.51464249]
[1644562379260,0.64769968,43298.0,43297.0,0.165567]
[1644562379860,0.64769968,43298.0,43297.0,0.115567]
[1644562380260,0.69769968,43298.0,43297.0,0.115567]
[1644562380861,0.96582316,43298.0,43296.0,0.057782]
[1644562381066,0.27634984,43297.0,43296.0,0.057782]
[1644562381306,0.42253095,43297.0,43296.0,0.057782]
[1644562381500,0.32264984,43297.0,43296.0,0.057782]
[1644562381698,0.0463,43297.0,43296.0,0.057782]
[1644562382300,0.34008869,43297.0,43296.0,0.057782]
[1644562382699,0.4399698,43297.0,43296.0,0.057782]
[1644562383100,0.34008869,43297.0,43296.0,0.057782]
[1644562383301,0.4399698,43297.0,43296.0,0.057782]
[1644562383601,0.34008869,43297.0,43296.0,0.057782]
[1644562384301,0.44008869,43297.0,43296.0,0.057782]
[1644562384700,0.5399698,43297.0,43296.0,0.057782]
[1644562384899,0.44008869,43297.0,43296.0,0.057782]
[1644562386653,0.0463,43298.0,43297.0,0.2]
[1644562386857,0.0463,43298.0,43297.0,0.2787703]
[1644562387056,0.33826075,43302.0,43298.0,0.85]
[1644562387257,0.33826075,43302.0,43301.0,0.05]
[1644562387654,0.33826075,43302.0,43301.0,0.24467596]
[1644562388456,0.33826075,43302.0,43301.0,0.74332846]
[1644562388656,0.33826075,43302.0,43301.0,0.94240395]
[1644562388909,0.33450331,43302.0,43301.0,0.64375145]
[1644562389104,0.33450331,43302.0,43301.0,0.75927945]
[1644562389805,0.33450331,43302.0,43301.0,0.59375145]
[1644562390006,0.00062966,43309.0,43303.0,0.057771]
[1644562390205,0.24882527,43314.0,43308.0,0.20854133]
[1644562390408,0.00062966,43309.0,43308.0,0.20854133]
[1644562391410,0.057773,43311.0,43308.0,0.20854133]
[1644562391607,0.05840271,43311.0,43308.0,0.20854133]
[1644562392550,0.057773,43311.0,43308.0,0.20854133]
[1644562392751,0.057773,43311.0,43308.0,0.26631233]
[1644562394354,0.05749504,43311.0,43308.0,0.26631233]
[1644562400552,0.00062948,43312.0,43308.0,0.26631233]
[1644562400752,0.00062948,43312.0,43310.0,0.05]
[1644562400954,0.06926343,43313.0,43310.0,0.05]
[1644562401153,0.00062948,43312.0,43310.0,0.05]
[1644562401357,0.00062948,43312.0,43311.0,0.30644905]
[1644562402054,0.115527,43319.0,43311.0,0.30644905]
[1644562402253,0.115527,43319.0,43313.0,0.057761]
[1644562402455,0.00062947,43314.0,43313.0,0.057761]
[1644562403054,0.00062947,43314.0,43313.0,0.107761]
[1644562403254,0.115527,43319.0,43313.0,0.107761]
[1644562403655,0.00062946,43316.0,43313.0,0.107761]
[1644562403902,0.00062946,43316.0,43315.0,0.21760479]
[1644562404505,0.057759,43318.0,43315.0,0.21760479]
[1644562404802,0.05838845,43318.0,43315.0,0.21760479]
[1644562405405,0.05838845,43318.0,43315.0,0.27536379]
[1644562405604,0.05838845,43318.0,43316.0,0.05]
[1644562405804,0.057759,43318.0,43316.0,0.05]
[1644562406904,0.115519,43318.0,43316.0,0.05]
[1644562407304,0.110519,43318.0,43316.0,0.05]
[1644562407748,0.002797,43990.0,43316.0,0.05]
[1644562407950,0.0463,43330.0,43318.0,0.92631229]
[1644562408151,0.0463,43330.0,43324.0,0.06642369]
[1644562408351,0.750121,43329.0,43324.0,0.06642369]
[1644562408651,0.69236,43329.0,43324.0,0.06642369]
[1644562408851,0.69236,43329.0,43327.0,0.18968482]
[1644562409052,0.69236,43329.0,43327.0,0.53024535]
[1644562409250,0.79236,43329.0,43327.0,0.34056053]
[1644562409655,0.057751,43328.0,43327.0,0.34056053]
[1644562411498,0.057751,43328.0,43326.0,0.31534688]
[1644562413799,0.05747311,43328.0,43326.0,0.31534688]
[1644562414199,0.05747311,43328.0,43326.0,0.057753]
[1644562418554,0.69236,43329.0,43327.0,0.36709859]
[1644562418812,0.69236,43329.0,43328.0,0.14907549]
[1644562419000,0.69236,43329.0,43328.0,0.19907549]
[1644562420204,0.69226,43329.0,43328.0,0.19907549]
[1644562420807,0.69226,43329.0,43328.0,0.52076579]
[1644562421010,0.69226,43329.0,43328.0,0.19907549]
[1644562421209,0.69226,43329.0,43328.0,0.19899593]
[1644562422110,0.69226,43329.0,43328.0,0.52285248]
[1644562422550,0.69226,43329.0,43328.0,0.19899593]
[1644562423351,0.69226,43329.0,43328.0,0.05]
[1644562424754,0.69226,43329.0,43328.0,0.39899593]
[1644562424953,0.69226,43329.0,43328.0,0.05]
[1644562425753,0.69226,43329.0,43328.0,0.39899593]
[1644562425954,0.69226,43329.0,43328.0,0.05]
[1644562426603,0.69226,43329.0,43327.0,0.05773397]
[1644562426804,0.69226,43329.0,43328.0,0.19899593]
[1644562427202,0.69226,43329.0,43328.0,0.24899593]
[1644562427600,0.69226,43329.0,43328.0,0.18204394]
[1644562430549,0.69226,43329.0,43328.0,0.1]
[1644562433252,0.69198222,43329.0,43328.0,0.05]
[1644562434304,0.69198222,43329.0,43328.0,0.1]
[1644562435605,0.59198222,43329.0,43328.0,0.1]
[1644562436105,0.59198222,43329.0,43328.0,0.09992044]
[1644562436704,0.58198222,43329.0,43328.0,0.09992044]
[1644562436905,0.23555122,43329.0,43328.0,0.09992044]
[1644562437405,0.05774,43333.0,43331.0,0.14899593]
[1644562437655,0.05774,43333.0,43332.0,0.05]
[1644562438157,0.05774,43333.0,43332.0,0.1]
[1644562438455,0.05774,43333.0,43332.0,0.46901611]
[1644562438655,0.323737,43335.0,43332.0,0.5267566]
[1644562438855,0.323737,43335.0,43333.0,0.057734]
[1644562439457,0.323737,43335.0,43334.0,0.08006233]
[1644562439957,0.323737,43335.0,43334.0,0.13006233]
[1644562440358,0.323737,43335.0,43334.0,0.05]
[1644562440560,0.323737,43335.0,43333.0,0.22320121]
[1644562441408,0.323737,43335.0,43334.0,0.2]
[1644562441608,0.323737,43335.0,43333.0,0.22320121]
[1644562441806,0.323737,43335.0,43333.0,0.17320121]
[1644562442408,0.323737,43335.0,43334.0,0.2]
[1644562442608,0.323737,43335.0,43334.0,0.05]
[1644562443208,0.323737,43335.0,43333.0,0.22320121]
[1644562443413,0.323737,43335.0,43334.0,0.25]
[1644562444208,0.323737,43335.0,43333.0,0.22320121]
[1644562444409,0.323737,43335.0,43334.0,0.25]
[1644562445656,0.00020672,43340.0,43335.0,0.057728]
[1644562445852,0.00020672,43340.0,43336.0,0.05]
[1644562446055,0.00020672,43340.0,43338.0,0.19034841]
[1644562446254,0.00020672,43340.0,43339.0,0.08070356]
[1644562446653,0.00020672,43340.0,43339.0,0.38214677]
[1644562448263,0.057728,43341.0,43339.0,0.38214677]
[1644562448264,0.05334816,43341.0,43340.0,0.25]
[1644562448457,0.05334816,43341.0,43340.0,0.3]
[1644562448911,0.05334816,43341.0,43340.0,0.05]
[1644562449110,0.05334816,43341.0,43339.0,0.41689921]
[1644562449111,0.05334816,43341.0,43339.0,0.46689921]
[1644562449709,0.05334816,43341.0,43339.0,0.49422882]
[1644562451611,0.05334816,43341.0,43339.0,0.49414926]
[1644562452011,0.05307038,43341.0,43339.0,0.49414926]
[1644562453458,0.05307038,43341.0,43339.0,0.41681965]
[1644562454859,0.05307038,43341.0,43339.0,0.46681965]
[1644562455159,0.05307038,43341.0,43340.0,0.07002745]
[1644562456311,0.05307038,43341.0,43339.0,0.22310426]
[1644562457302,0.05307038,43341.0,43340.0,0.37548736]
[1644562460855,0.00041344,43341.0,43340.0,0.37548736]
[1644562461663,0.00018964,43342.0,43341.0,0.85]
[1644562461862,0.00101652,43342.0,43341.0,1.20603368]
[1644562462058,0.00101652,43342.0,43341.0,0.85]
[1644562462257,0.00101652,43342.0,43341.0,0.9]
[1644562462457,0.00101652,43342.0,43341.0,0.95]
[1644562462857,0.009247,43346.0,43344.0,0.2]
[1644562463058,0.00962628,43346.0,43344.0,0.30661715]
[1644562463258,0.00962628,43346.0,43344.0,0.50661715]
[1644562463809,0.00962628,43346.0,43344.0,0.30661715]
[1644562464206,0.06734928,43346.0,43344.0,0.23086517]
[1644562465407,0.06734928,43346.0,43344.0,0.173149]
[1644562465408,0.0463,43345.0,43344.0,0.173149]
[1644562465705,0.04667928,43345.0,43344.0,0.173149]
[1644562468763,0.62527928,43345.0,43344.0,0.173149]
[1644562468962,0.057742,43344.0,43342.0,0.05830243]
[1644562469159,0.0463,43343.0,43342.0,0.05830243]
[1644562469359,0.0463,43343.0,43342.0,0.00058543]
[1644562469663,0.04667928,43343.0,43342.0,0.00058543]
[1644562469859,0.04667928,43343.0,43341.0,0.057739]
[1644562470959,0.35959612,43342.0,43341.0,0.057739]
[1644562471160,0.50589612,43342.0,43341.0,0.057739]
[1644562471414,0.50589612,43342.0,43340.0,0.00058551]
[1644562471415,1.19224312,43342.0,43340.0,0.00058551]
[1644562471612,1.19224312,43342.0,43325.0,0.5643]
[1644562471613,0.85,43339.0,43325.0,0.5143]
[1644562471814,0.5786,43333.0,43325.0,0.5143]
[1644562472010,0.0463,43332.0,43325.0,0.5143]
[1644562472316,0.0463,43332.0,43326.0,0.05775423]
[1644562472317,0.32198749,43328.0,43326.0,0.05775423]
[1644562472511,0.0463,43327.0,43326.0,0.05775423]
[1644562475150,0.0463,43327.0,43326.0,0.30775423]
[1644562475450,0.0463,43327.0,43326.0,0.10775423]
[1644562475852,0.0463,43327.0,43326.0,0.30775423]
[1644562476252,0.0463,43327.0,43326.0,0.10775423]
[1644562477051,0.0463,43327.0,43326.0,0.05775423]
[1644562483850,0.04439986,43327.0,43326.0,0.05775423]
[1644562485257,0.04439986,43327.0,43326.0,0.10775423]
[1644562485855,0.04439986,43327.0,43326.0,0.05775423]
[1644562494707,0.04439986,43327.0,43325.0,0.64286588]
[1644562495307,0.04439986,43327.0,43326.0,0.05775423]
[1644562498059,0.04439986,43327.0,43326.0,0.12549263]
[1644562498861,0.04439986,43327.0,43326.0,0.45357338]
[1644562499860,0.2615361,43336.0,43335.0,0.39744473]
[1644562500062,0.69227,43336.0,43335.0,0.39744473]
[1644562500263,0.69227,43336.0,43335.0,0.59744473]
[1644562500861,0.69227,43336.0,43335.0,0.65517869]
[1644562501064,0.69227,43336.0,43335.0,0.11546796]
[1644562501705,0.69199221,43336.0,43335.0,0.11546796]
[1644562502107,0.69199221,43336.0,43335.0,0.31546796]
[1644562502309,0.39939221,43336.0,43335.0,0.31546796]
[1644562502607,0.05306921,43336.0,43335.0,0.31546796]
[1644562503007,0.05306921,43336.0,43335.0,0.64391434]
[1644562503807,0.05306921,43336.0,43335.0,0.44391434]
[1644562505055,0.04806921,43336.0,43335.0,0.44391434]
[1644562505654,0.04704393,43336.0,43335.0,0.44391434]
[1644562508910,0.04704393,43336.0,43335.0,0.11546796]
[1644562509310,0.04704393,43336.0,43335.0,0.05773396]
[1644562509506,0.09334393,43336.0,43335.0,0.05773396]
[1644562509709,0.42598067,43336.0,43335.0,0.05773396]
[1644562511210,0.42598067,43336.0,43334.0,0.115468]
[1644562511211,0.47598067,43336.0,43334.0,0.115468]
[1644562511412,0.36019958,43335.0,43334.0,0.115468]
[1644562511609,0.40649958,43335.0,43333.0,0.23156769]
[1644562511809,0.35794757,43334.0,43333.0,0.23094592]
[1644562512011,0.40424757,43334.0,43333.0,0.23094592]
[1644562513056,0.98284757,43334.0,43333.0,0.173202]
[1644562513255,1.08284757,43334.0,43332.0,0.057745]
[1644562513457,0.95282021,43333.0,43332.0,0.057745]
[1644562513655,0.99912021,43333.0,43332.0,0.057745]
[1644562520657,1.1883786,43333.0,43332.0,0.057745]
[1644562524807,1.1883786,43333.0,43330.0,0.023242]
[1644562525006,0.057751,43332.0,43330.0,0.023242]
[1644562525205,0.39878729,43331.0,43330.0,0.023242]
[1644562528757,0.0463,43331.0,43330.0,0.023242]
[1644562529356,0.16251793,43336.0,43332.0,0.05773567]
[1644562529556,0.16251793,43336.0,43332.0,0.11547167]
[1644562529758,0.31660022,43335.0,43333.0,0.05]
[1644562529956,0.16251793,43336.0,43333.0,0.165473]
[1644562530155,0.3184256,43335.0,43333.0,0.165473]
[1644562530356,0.3184256,43335.0,43333.0,0.28094595]
[1644562530555,0.16251793,43336.0,43333.0,0.28094595]
[1644562530755,0.16251793,43336.0,43334.0,0.05773612]
[1644562530756,0.10477993,43336.0,43334.0,0.05773612]
[1644562530955,0.31797231,43335.0,43333.0,0.28094595]
[1644562531156,0.10477993,43336.0,43333.0,0.64826984]
[1644562531421,0.15477993,43336.0,43333.0,0.64826984]
[1644562532221,0.15477993,43336.0,43333.0,0.28094595]
[1644562532222,0.32332737,43335.0,43333.0,0.28094595]
[1644562532822,0.15477993,43336.0,43334.0,0.2]
[1644562533224,0.15477993,43336.0,43333.0,0.28094595]
[1644562533628,0.15477993,43336.0,43334.0,0.05773341]
[1644562535570,0.4963,43335.0,43326.0,0.2]
[1644562535770,0.107739,43334.0,43327.0,0.118]
[1644562535967,0.0463,43333.0,43327.0,0.118]
[1644562536167,0.0463,43333.0,43331.0,0.11548258]
[1644562537067,0.057745,43332.0,43331.0,0.05774095]
[1644562537266,0.104045,43332.0,43331.0,0.05774095]
[1644562537667,0.104045,43332.0,43331.0,0.11548295]
[1644562538270,0.104045,43332.0,43331.0,0.057742]
[1644562539708,0.104045,43332.0,43331.0,0.057298]
[1644562540710,0.057745,43332.0,43331.0,0.057298]
[1644562540912,0.0463,43332.0,43330.0,0.107746]
[1644562541111,0.154046,43332.0,43330.0,0.107746]
[1644562541314,0.323984,43331.0,43330.0,0.05]
[1644562541509,0.370284,43331.0,43329.0,0.00066324]
[1644562541909,0.31651314,43330.0,43326.0,0.30774453]
[1644562542110,0.0463,43329.0,43328.0,0.00066325]
[1644562542569,0.370284,43329.0,43328.0,0.00066325]
[1644562542769,1.048884,43329.0,43328.0,0.00021925]
[1644562542965,1.048884,43329.0,43320.0,0.00265348]
[1644562542966,3.89978075,43328.0,43320.0,0.00265348]
[1644562543166,1.048884,43329.0,43317.0,0.3947]
[1644562543167,0.359233,43327.0,43317.0,0.3947]